[Event "*** Titled Tuesday 3|2 Blitz"]
[Site "Chess.com"]
[Date "2015.05.05"]
[Round "2"]
[White "amaidel"]
[Black "AungTZ"]
[Result "1-0"]
[WhiteElo "2293"]
[BlackElo "2133"]
[TimeControl "180+2"]
[EndTime "11:17:57 PDT"]
[Termination "amaidel won by resignation"]

1. e4 {[%clk 0:03:01.9]} 1... c5 {[%clk 0:03:00.1]} 2. Nf3 {[%clk 0:03:02.6]}
2... Nc6 {[%clk 0:03:01]} 3. d4 {[%clk 0:03:03.7]} 3... cxd4 {[%clk 0:03:02.2]}
4. Nxd4 {[%clk 0:03:04.8]} 4... Nf6 {[%clk 0:03:02.9]} 5. Nc3 {[%clk 0:03:06.1]}
5... d6 {[%clk 0:03:03.8]} 6. Bc4 {[%clk 0:03:06.6]} 6... Qb6 {[%clk 0:03:04]}
7. Nb3 {[%clk 0:03:07.5]} 7... e6 {[%clk 0:03:04.5]} 8. Bf4 {[%clk 0:03:06.7]}
8... Ne5 {[%clk 0:03:03.9]} 9. Be2 {[%clk 0:03:02.5]} 9... a6 {[%clk 0:03:03]}
10. Be3 {[%clk 0:02:52.6]} 10... Qc7 {[%clk 0:03:00.9]} 11. f4 {[%clk
0:02:52.1]} 11... Nc4 {[%clk 0:02:55.7]} 12. Bxc4 {[%clk 0:02:53]} 12... Qxc4
{[%clk 0:02:56.3]} 13. Qd3 {[%clk 0:02:53.8]} 13... Qxd3 {[%clk 0:02:49.2]} 14.
cxd3 {[%clk 0:02:54.6]} 14... b5 {[%clk 0:02:49.9]} 15. a4 {[%clk 0:02:52.1]}
15... b4 {[%clk 0:02:49.1]} 16. Ne2 {[%clk 0:02:52.8]} 16... Bb7 {[%clk
0:02:48.8]} 17. Rc1 {[%clk 0:02:51.7]} 17... Kd7 {[%clk 0:02:48.9]} 18. Na5
{[%clk 0:02:50.6]} 18... Rb8 {[%clk 0:02:33.1]} 19. Ba7 {[%clk 0:02:49.3]} 19...
Rc8 {[%clk 0:02:32.9]} 20. Nxb7 {[%clk 0:02:48]} 20... Rxc1+ {[%clk 0:02:33.1]}
21. Nxc1 {[%clk 0:02:48.8]} 21... d5 {[%clk 0:02:35]} 22. e5 {[%clk 0:02:46.6]}
22... Ne8 {[%clk 0:02:35.1]} 23. Bc5 {[%clk 0:02:44.6]} 23... Kc7 {[%clk
0:02:31.3]} 24. Bxf8 {[%clk 0:02:44.2]} 24... Rxf8 {[%clk 0:02:31.4]} 25. Nc5
{[%clk 0:02:44.4]} 25... Kb6 {[%clk 0:02:31.2]} 26. N1b3 {[%clk 0:02:43.5]}
26... Rg8 {[%clk 0:02:30.5]} 27. Kd2 {[%clk 0:02:42.3]} 27... Nc7 {[%clk
0:02:27.6]} 28. Rf1 {[%clk 0:02:39]} 28... d4 {[%clk 0:02:26.4]} 29. Ne4 {[%clk
0:02:36]} 29... Rd8 {[%clk 0:02:20.7]} 30. Nd6 {[%clk 0:02:33.6]} 30... f6
{[%clk 0:02:20.9]} 31. Nc4+ {[%clk 0:02:33]} 31... Ka7 {[%clk 0:02:18.8]} 32.
Nba5 {[%clk 0:02:31.9]} 32... Rd5 {[%clk 0:02:12.8]} 33. Re1 {[%clk 0:02:30.8]}
33... f5 {[%clk 0:02:13.1]} 34. Nc6+ {[%clk 0:02:27]} 34... Kb7 {[%clk
0:02:12.6]} 35. Nxb4 {[%clk 0:02:27.8]} 35... Rd8 {[%clk 0:02:12]} 1-0

[Event "*** Titled Tuesday 3|2 Blitz"]
[Site "Chess.com"]
[Date "2015.05.05"]
[Round "2"]
[White "pedromartinez91"]
[Black "ViennaRocket"]
[Result "1-0"]
[WhiteElo "2155"]
[BlackElo "2266"]
[TimeControl "180+2"]
[EndTime "11:18:04 PDT"]
[Termination "pedromartinez91 won by resignation"]

1. e4 {[%clk 0:03:00.2]} 1... d5 {[%clk 0:03:00.9]} 2. exd5 {[%clk 0:03:00.9]}
2... Qxd5 {[%clk 0:03:02.8]} 3. Nc3 {[%clk 0:03:01.4]} 3... Qd6 {[%clk 0:03:04]}
4. d4 {[%clk 0:03:02.2]} 4... Nf6 {[%clk 0:03:02.8]} 5. Be2 {[%clk 0:03:02.7]}
5... Bf5 {[%clk 0:02:59.4]} 6. Bf3 {[%clk 0:03:03.5]} 6... c6 {[%clk 0:03:00.5]}
7. Nge2 {[%clk 0:03:04.2]} 7... e5 {[%clk 0:02:47.2]} 8. dxe5 {[%clk 0:03:04.4]}
8... Qxe5 {[%clk 0:02:48.5]} 9. O-O {[%clk 0:03:04.9]} 9... Be7 {[%clk
0:02:49.5]} 10. Bf4 {[%clk 0:03:04.7]} 10... Qa5 {[%clk 0:02:43.2]} 11. Nd4
{[%clk 0:02:55.7]} 11... Bg6 {[%clk 0:02:38.3]} 12. Re1 {[%clk 0:02:45.8]} 12...
Qd8 {[%clk 0:02:39.3]} 13. Qe2 {[%clk 0:02:23.2]} 13... Nbd7 {[%clk 0:02:36.6]}
14. Bd6 {[%clk 0:02:21]} 14... Ng8 {[%clk 0:02:34.8]} 15. Nxc6 {[%clk
0:02:13.6]} 15... bxc6 {[%clk 0:02:32.9]} 16. Bxc6 {[%clk 0:02:14.6]} 16... Rc8
{[%clk 0:02:34.4]} 17. Ba4 {[%clk 0:02:15.1]} 17... Kf8 {[%clk 0:02:33.5]} 18.
Rad1 {[%clk 0:02:10.2]} 18... Bxd6 {[%clk 0:02:27]} 19. Rxd6 {[%clk 0:02:10.1]}
19... Ngf6 {[%clk 0:02:28.5]} 20. Nd5 {[%clk 0:02:03.3]} 20... Nxd5 {[%clk
0:01:50.3]} 21. Rxd7 {[%clk 0:02:03.3]} 21... Qg5 {[%clk 0:01:47.6]} 22. Rxd5
{[%clk 0:02:02.4]} 1-0

[Event "*** Titled Tuesday 3|2 Blitz"]
[Site "Chess.com"]
[Date "2015.05.05"]
[Round "2"]
[White "Lovlas"]
[Black "Schemato"]
[Result "1-0"]
[WhiteElo "2244"]
[BlackElo "2108"]
[TimeControl "180+2"]
[EndTime "11:18:20 PDT"]
[Termination "Lovlas won by resignation"]

1. d4 {[%clk 0:03:01.9]} 1... e6 {[%clk 0:03:00.2]} 2. c4 {[%clk 0:02:57.2]}
2... f5 {[%clk 0:03:00.5]} 3. Nc3 {[%clk 0:02:57.1]} 3... Nf6 {[%clk 0:03:01.4]}
4. g3 {[%clk 0:02:58.5]} 4... c6 {[%clk 0:03:01.1]} 5. Bg2 {[%clk 0:02:54.3]}
5... d5 {[%clk 0:03:02.3]} 6. Nf3 {[%clk 0:02:54.8]} 6... Bd6 {[%clk 0:03:01.8]}
7. O-O {[%clk 0:02:56.1]} 7... O-O {[%clk 0:03:02.3]} 8. Rb1 {[%clk 0:02:56.2]}
8... Qe7 {[%clk 0:03:02.6]} 9. Bf4 {[%clk 0:02:55.3]} 9... Bxf4 {[%clk
0:03:02.5]} 10. gxf4 {[%clk 0:02:57.2]} 10... Nbd7 {[%clk 0:02:58.3]} 11. b4
{[%clk 0:02:57.4]} 11... Ne4 {[%clk 0:02:55.4]} 12. Qc2 {[%clk 0:02:56]} 12...
b5 {[%clk 0:02:51.7]} 13. cxb5 {[%clk 0:02:51.5]} 13... Nxc3 {[%clk 0:02:52.3]}
14. Qxc3 {[%clk 0:02:53.4]} 14... cxb5 {[%clk 0:02:53.7]} 15. Nd2 {[%clk
0:02:50.1]} 15... Nb6 {[%clk 0:02:53.9]} 16. Qc5 {[%clk 0:02:50.5]} 16... Qe8
{[%clk 0:02:31.5]} 17. Rfc1 {[%clk 0:02:42.9]} 17... Bd7 {[%clk 0:02:29.6]} 18.
Qd6 {[%clk 0:02:36.9]} 18... Rc8 {[%clk 0:02:23.5]} 19. Rc7 {[%clk 0:02:36.5]}
19... Rxc7 {[%clk 0:02:19.5]} 20. Qxc7 {[%clk 0:02:38.4]} 20... Qb8 {[%clk
0:02:19.9]} 21. Rc1 {[%clk 0:02:37.5]} 21... Rc8 {[%clk 0:02:11.8]} 22. Qxb8
{[%clk 0:02:38.4]} 22... Rxb8 {[%clk 0:02:12.9]} 23. Rc7 {[%clk 0:02:40.1]}
23... a6 {[%clk 0:02:03.7]} 24. Nb3 {[%clk 0:02:40.8]} 24... Kf8 {[%clk
0:02:02.6]} 25. Nc5 {[%clk 0:02:41.4]} 25... Ke8 {[%clk 0:02:01.4]} 26. e3
{[%clk 0:02:40.5]} 26... Rc8 {[%clk 0:01:44]} 27. Ra7 {[%clk 0:02:41]} 27... Na4
{[%clk 0:01:40.3]} 28. Rxa6 {[%clk 0:02:40.3]} 28... Nxc5 {[%clk 0:01:40.5]} 29.
bxc5 {[%clk 0:02:42.2]} 29... Bc6 {[%clk 0:01:31.1]} 30. Bf1 {[%clk 0:02:42.5]}
30... Kd7 {[%clk 0:01:29.9]} 31. Rb6 {[%clk 0:02:43.5]} 31... Ra8 {[%clk
0:01:27.9]} 32. Bxb5 {[%clk 0:02:44.7]} 32... Bxb5 {[%clk 0:01:28.4]} 33. Rxb5
{[%clk 0:02:46.6]} 33... Rxa2 {[%clk 0:01:29.1]} 34. Rb7+ {[%clk 0:02:47.9]} 1-0

[Event "*** Titled Tuesday 3|2 Blitz"]
[Site "Chess.com"]
[Date "2015.05.05"]
[Round "2"]
[White "llamalord42"]
[Black "vinceyoung15"]
[Result "1-0"]
[WhiteElo "2236"]
[BlackElo "2105"]
[TimeControl "180+2"]
[EndTime "11:19:39 PDT"]
[Termination "llamalord42 won by checkmate"]

1. e4 {[%clk 0:03:01.9]} 1... c5 {[%clk 0:03:00.3]} 2. Nf3 {[%clk 0:03:03.1]}
2... Nc6 {[%clk 0:03:01.1]} 3. Bb5 {[%clk 0:03:03.6]} 3... g6 {[%clk 0:03:01.8]}
4. Bxc6 {[%clk 0:03:04.6]} 4... dxc6 {[%clk 0:03:03]} 5. d3 {[%clk 0:03:04.4]}
5... Bg7 {[%clk 0:03:04.1]} 6. h3 {[%clk 0:03:05.6]} 6... Nf6 {[%clk 0:03:05.2]}
7. Nc3 {[%clk 0:03:06.3]} 7... Nd7 {[%clk 0:03:06.1]} 8. Be3 {[%clk 0:03:01.2]}
8... e5 {[%clk 0:03:07]} 9. Qd2 {[%clk 0:03:01.3]} 9... h6 {[%clk 0:03:06.9]}
10. a3 {[%clk 0:02:53.4]} 10... Qe7 {[%clk 0:03:07.1]} 11. Rb1 {[%clk
0:02:49.4]} 11... Nf8 {[%clk 0:02:48.1]} 12. b4 {[%clk 0:02:49.9]} 12... Ne6
{[%clk 0:02:49.1]} 13. O-O {[%clk 0:02:44.1]} 13... f5 {[%clk 0:02:41.9]} 14.
exf5 {[%clk 0:02:41.1]} 14... gxf5 {[%clk 0:02:42.5]} 15. Bxc5 {[%clk 0:02:32]}
15... Nxc5 {[%clk 0:02:41.2]} 16. bxc5 {[%clk 0:02:33.9]} 16... Qxc5 {[%clk
0:02:39.3]} 17. d4 {[%clk 0:02:32.2]} 17... exd4 {[%clk 0:02:36]} 18. Rfe1+
{[%clk 0:02:33.3]} 18... Kf7 {[%clk 0:02:28.6]} 19. Ne2 {[%clk 0:02:22.4]} 19...
Rd8 {[%clk 0:02:14.9]} 20. Qd3 {[%clk 0:02:16.8]} 20... Be6 {[%clk 0:02:06.2]}
21. Rxb7+ {[%clk 0:02:15.5]} 21... Kg8 {[%clk 0:02:06.9]} 22. Ng3 {[%clk
0:02:01.8]} 22... Qd5 {[%clk 0:01:39.3]} 23. Nh5 {[%clk 0:01:42.8]} 23... Bh8
{[%clk 0:01:03.1]} 24. Nf4 {[%clk 0:01:37.4]} 24... Qc4 {[%clk 0:00:51.1]} 25.
Rxe6 {[%clk 0:01:36.4]} 25... Qxd3 {[%clk 0:00:51.5]} 26. Rg6+ {[%clk
0:01:31.2]} 26... Kf8 {[%clk 0:00:51.9]} 27. Ne6+ {[%clk 0:01:31.2]} 27... Ke8
{[%clk 0:00:52.4]} 28. Rg8# {[%clk 0:01:32.3]} 1-0

[Event "*** Titled Tuesday 3|2 Blitz"]
[Site "Chess.com"]
[Date "2015.05.05"]
[Round "2"]
[White "jup1978"]
[Black "David_Klein"]
[Result "0-1"]
[WhiteElo "2149"]
[BlackElo "2238"]
[TimeControl "180+2"]
[EndTime "11:19:49 PDT"]
[Termination "David_Klein won by resignation"]

1. e4 {[%clk 0:03:01.9]} 1... Nf6 {[%clk 0:03:01.9]} 2. e5 {[%clk 0:02:58.4]}
2... Nd5 {[%clk 0:03:03]} 3. d4 {[%clk 0:02:59.9]} 3... Nb6 {[%clk 0:03:01.7]}
4. c4 {[%clk 0:03:01.8]} 4... d6 {[%clk 0:03:01.2]} 5. exd6 {[%clk 0:03:03]}
5... cxd6 {[%clk 0:03:02.6]} 6. Nc3 {[%clk 0:03:03.7]} 6... g6 {[%clk
0:03:03.9]} 7. Be3 {[%clk 0:03:05.1]} 7... Bg7 {[%clk 0:03:05.2]} 8. Rc1 {[%clk
0:03:06.6]} 8... O-O {[%clk 0:03:05.9]} 9. b3 {[%clk 0:03:08]} 9... Nc6 {[%clk
0:03:07.3]} 10. Nf3 {[%clk 0:03:08.5]} 10... Bg4 {[%clk 0:03:06.6]} 11. Be2
{[%clk 0:03:08.8]} 11... d5 {[%clk 0:03:07.9]} 12. c5 {[%clk 0:03:09.2]} 12...
Nc8 {[%clk 0:03:09.4]} 13. h3 {[%clk 0:03:10.3]} 13... Bxf3 {[%clk 0:03:09.8]}
14. Bxf3 {[%clk 0:03:12.2]} 14... e6 {[%clk 0:03:11.5]} 15. O-O {[%clk
0:03:11.3]} 15... N8e7 {[%clk 0:03:13.1]} 16. a3 {[%clk 0:03:00.5]} 16... Nf5
{[%clk 0:03:10.3]} 17. Ne2 {[%clk 0:03:01.4]} 17... Qa5 {[%clk 0:03:10]} 18. Ra1
{[%clk 0:02:52.5]} 18... Rad8 {[%clk 0:03:03.9]} 19. b4 {[%clk 0:02:52.8]} 19...
Qc7 {[%clk 0:03:04.5]} 20. b5 {[%clk 0:02:48.5]} 20... Nxe3 {[%clk 0:03:04.8]}
21. fxe3 {[%clk 0:02:48.3]} 21... Ne7 {[%clk 0:03:06.4]} 22. Qb3 {[%clk
0:02:33.8]} 22... Nf5 {[%clk 0:03:04.1]} 23. Rad1 {[%clk 0:02:32.1]} 23... h5
{[%clk 0:03:01.2]} 24. a4 {[%clk 0:02:29.9]} 24... Qe7 {[%clk 0:03:01.6]} 25.
Nf4 {[%clk 0:02:20.9]} 25... Qg5 {[%clk 0:02:56.7]} 26. Rf2 {[%clk 0:02:13.8]}
26... Nxd4 {[%clk 0:02:45]} 27. exd4 {[%clk 0:02:08.7]} 27... Qxf4 {[%clk
0:02:45.7]} 28. Bxh5 {[%clk 0:02:04.4]} 28... Bxd4 {[%clk 0:02:41.8]} 29. Rxd4
{[%clk 0:01:55.1]} 29... Qxd4 {[%clk 0:02:42.3]} 30. Qg3 {[%clk 0:01:57]} 30...
Qa1+ {[%clk 0:02:37.3]} 31. Kh2 {[%clk 0:01:57.4]} 31... Qg7 {[%clk 0:02:38.6]}
32. Bg4 {[%clk 0:01:56.4]} 32... d4 {[%clk 0:02:36.5]} 33. c6 {[%clk 0:01:57.3]}
33... bxc6 {[%clk 0:02:37.3]} 34. bxc6 {[%clk 0:01:59.2]} 34... Rc8 {[%clk
0:02:35.9]} 35. Qd6 {[%clk 0:01:58.1]} 35... Rfd8 {[%clk 0:02:35.4]} 36. Qe7
{[%clk 0:01:53.8]} 36... Qf8 {[%clk 0:02:33.3]} 37. Qb7 {[%clk 0:01:40.9]} 37...
Qd6+ {[%clk 0:02:31.1]} 38. g3 {[%clk 0:01:38.1]} 38... Rc7 {[%clk 0:02:32.3]}
39. Qb1 {[%clk 0:01:26.5]} 39... d3 {[%clk 0:02:31.6]} 40. Rf6 {[%clk 0:01:27]}
40... Kg7 {[%clk 0:02:25.8]} 41. Qf1 {[%clk 0:01:15.6]} 41... d2 {[%clk
0:02:23.5]} 42. Rxg6+ {[%clk 0:01:07.4]} 42... fxg6 {[%clk 0:02:22.9]} 0-1

[Event "*** Titled Tuesday 3|2 Blitz"]
[Site "Chess.com"]
[Date "2015.05.05"]
[Round "2"]
[White "VSERGUEI"]
[Black "Shankland"]
[Result "1-0"]
[WhiteElo "2454"]
[BlackElo "2493"]
[TimeControl "180+2"]
[EndTime "11:20:06 PDT"]
[Termination "VSERGUEI won by resignation"]

1. d4 {[%clk 0:03:01.9]} 1... d5 {[%clk 0:03:00.6]} 2. c4 {[%clk 0:03:02.7]}
2... e6 {[%clk 0:03:02.2]} 3. Nc3 {[%clk 0:03:03.1]} 3... Nf6 {[%clk 0:03:03.4]}
4. cxd5 {[%clk 0:03:04]} 4... exd5 {[%clk 0:03:04.6]} 5. Bg5 {[%clk 0:03:04.7]}
5... c6 {[%clk 0:03:06.1]} 6. e3 {[%clk 0:03:05.8]} 6... Bf5 {[%clk 0:03:06.8]}
7. Qf3 {[%clk 0:03:05.9]} 7... Bg6 {[%clk 0:03:08.1]} 8. Bxf6 {[%clk 0:03:07]}
8... Qxf6 {[%clk 0:03:10]} 9. Qxf6 {[%clk 0:03:07.8]} 9... gxf6 {[%clk
0:03:11.9]} 10. O-O-O {[%clk 0:03:08.4]} 10... Nd7 {[%clk 0:03:12.7]} 11. Bd3
{[%clk 0:03:08.9]} 11... Nb6 {[%clk 0:03:10.1]} 12. Nf3 {[%clk 0:03:09]} 12...
a5 {[%clk 0:03:09.6]} 13. Nh4 {[%clk 0:03:09.1]} 13... Bb4 {[%clk 0:03:08.9]}
14. g3 {[%clk 0:03:07.4]} 14... Nc8 {[%clk 0:03:09.3]} 15. Nf5 {[%clk 0:03:05]}
15... a4 {[%clk 0:03:05.5]} 16. Kc2 {[%clk 0:03:03.8]} 16... Bxf5 {[%clk
0:02:30.5]} 17. Bxf5 {[%clk 0:03:02.8]} 17... Nd6 {[%clk 0:02:32.1]} 18. Bd3
{[%clk 0:02:56.1]} 18... f5 {[%clk 0:02:32.8]} 19. a3 {[%clk 0:02:56.5]} 19...
Bxc3 {[%clk 0:02:33.1]} 20. Kxc3 {[%clk 0:02:56.5]} 20... Kd7 {[%clk 0:02:28.4]}
21. h4 {[%clk 0:02:49.5]} 21... Ne4+ {[%clk 0:02:19.2]} 22. Bxe4 {[%clk
0:02:48.5]} 22... fxe4 {[%clk 0:02:21.1]} 23. h5 {[%clk 0:02:49]} 23... h6
{[%clk 0:02:21.6]} 24. Rh4 {[%clk 0:02:48.8]} 24... Rhg8 {[%clk 0:02:22.2]} 25.
Rf4 {[%clk 0:02:49.3]} 25... Ke6 {[%clk 0:02:23.4]} 26. g4 {[%clk 0:02:46.9]}
26... Rg5 {[%clk 0:02:24.1]} 27. Rg1 {[%clk 0:02:46.5]} 27... Rag8 {[%clk
0:02:23.9]} 28. Kb4 {[%clk 0:02:43.6]} 28... Rxh5 {[%clk 0:02:23.3]} 29. Kxa4
{[%clk 0:02:39.6]} 29... Rhg5 {[%clk 0:02:23.7]} 30. Rh1 {[%clk 0:02:39.3]}
30... R8g6 {[%clk 0:02:24.3]} 31. Ka5 {[%clk 0:02:39.7]} 31... Rxg4 {[%clk
0:02:23.4]} 32. Rxg4 {[%clk 0:02:39.1]} 32... Rxg4 {[%clk 0:02:25.3]} 33. Rxh6+
{[%clk 0:02:39.4]} 33... f6 {[%clk 0:02:26.7]} 34. Rh2 {[%clk 0:02:38.1]} 34...
Rg1 {[%clk 0:02:25.4]} 35. Kb6 {[%clk 0:02:38.4]} 35... Rb1 {[%clk 0:02:26.2]}
36. b4 {[%clk 0:02:36.2]} 36... Rb3 {[%clk 0:02:23.2]} 37. Kxb7 {[%clk
0:02:36.2]} 37... Rxa3 {[%clk 0:02:23.6]} 38. Kxc6 {[%clk 0:02:36.2]} 38... Rc3+
{[%clk 0:02:24.7]} 39. Kb6 {[%clk 0:02:36.4]} 39... Rc2 {[%clk 0:02:21.5]} 40.
b5 {[%clk 0:02:36.5]} 40... Kd6 {[%clk 0:02:21.3]} 41. Kb7 {[%clk 0:02:35.5]}
41... Rc7+ {[%clk 0:02:21]} 42. Ka6 {[%clk 0:02:33]} 42... Rc2 {[%clk 0:02:22]}
43. Kb6 {[%clk 0:02:27.4]} 43... Rb2 {[%clk 0:02:14.4]} 44. Ka6 {[%clk 0:02:25]}
44... Kc7 {[%clk 0:02:03.9]} 45. Rh7+ {[%clk 0:02:23.4]} 45... Kd6 {[%clk
0:02:05.1]} 46. b6 {[%clk 0:02:21.4]} 46... Rxf2 {[%clk 0:02:05.5]} 47. b7
{[%clk 0:02:20.3]} 47... Ra2+ {[%clk 0:02:05.3]} 48. Kb6 {[%clk 0:02:20.8]}
48... Rb2+ {[%clk 0:02:06]} 49. Ka7 {[%clk 0:02:21.5]} 49... Ra2+ {[%clk
0:02:07.6]} 50. Kb8 {[%clk 0:02:22.4]} 50... Ra3 {[%clk 0:02:08.9]} 51. Kc8
{[%clk 0:02:21.5]} 51... Rc3+ {[%clk 0:02:09.7]} 52. Kd8 {[%clk 0:02:22.3]}
52... Rb3 {[%clk 0:02:11.3]} 53. Rc7 {[%clk 0:02:14.3]} 53... f5 {[%clk
0:01:54.6]} 54. Kc8 {[%clk 0:02:13.7]} 54... f4 {[%clk 0:01:56]} 55. exf4 {[%clk
0:02:13.9]} 55... e3 {[%clk 0:01:57.4]} 56. b8=Q {[%clk 0:02:13.3]} 56... Rxb8+
{[%clk 0:01:57.3]} 57. Kxb8 {[%clk 0:02:14.2]} 57... Ke6 {[%clk 0:01:58.8]} 58.
Rc3 {[%clk 0:02:14]} 1-0

[Event "*** Titled Tuesday 3|2 Blitz"]
[Site "Chess.com"]
[Date "2015.05.05"]
[Round "2"]
[White "Zvonokchess"]
[Black "facu57"]
[Result "1-0"]
[WhiteElo "2499"]
[BlackElo "2139"]
[TimeControl "180+2"]
[EndTime "11:20:30 PDT"]
[Termination "Zvonokchess won by resignation"]

1. e4 {[%clk 0:02:53.4]} 1... c6 {[%clk 0:03:01.9]} 2. c4 {[%clk 0:02:54.1]}
2... d5 {[%clk 0:03:02.8]} 3. cxd5 {[%clk 0:02:56]} 3... cxd5 {[%clk 0:03:04.4]}
4. exd5 {[%clk 0:02:57.9]} 4... Qxd5 {[%clk 0:03:04.9]} 5. Nc3 {[%clk
0:02:58.1]} 5... Qd8 {[%clk 0:03:05.6]} 6. d4 {[%clk 0:02:59.6]} 6... e6 {[%clk
0:02:59.7]} 7. Nf3 {[%clk 0:03:00]} 7... Nf6 {[%clk 0:03:00.4]} 8. Bd3 {[%clk
0:03:01.5]} 8... Bd6 {[%clk 0:03:01.1]} 9. Bg5 {[%clk 0:03:02.2]} 9... O-O
{[%clk 0:03:01.6]} 10. Bc2 {[%clk 0:03:02.8]} 10... Nbd7 {[%clk 0:03:02.4]} 11.
Qd3 {[%clk 0:03:03.3]} 11... Qb6 {[%clk 0:03:01.7]} 12. O-O {[%clk 0:02:51.8]}
12... Re8 {[%clk 0:02:50.4]} 13. Rfe1 {[%clk 0:02:49.8]} 13... Be7 {[%clk
0:02:51.3]} 14. d5 {[%clk 0:02:39.1]} 14... Nf8 {[%clk 0:02:52.2]} 15. Rad1
{[%clk 0:02:18.5]} 15... Rd8 {[%clk 0:02:52.5]} 16. Qe2 {[%clk 0:01:56.1]} 16...
h6 {[%clk 0:02:42.4]} 17. Be3 {[%clk 0:01:54.8]} 17... Qa5 {[%clk 0:02:38.9]}
18. Bd2 {[%clk 0:01:09.2]} 18... Qb6 {[%clk 0:02:19.9]} 19. Bc1 {[%clk
0:01:03.8]} 19... Qa5 {[%clk 0:02:17.1]} 20. Qe5 {[%clk 0:01:00.2]} 20... Bd6
{[%clk 0:02:07]} 21. Qd4 {[%clk 0:00:52.2]} 21... exd5 {[%clk 0:02:07]} 22. Bxh6
{[%clk 0:00:50.5]} 22... Ne6 {[%clk 0:01:47.8]} 23. Qh4 {[%clk 0:00:51.4]} 23...
Be7 {[%clk 0:01:46]} 24. Bg5 {[%clk 0:00:45.7]} 24... Nxg5 {[%clk 0:01:30.6]}
25. Nxg5 {[%clk 0:00:44]} 25... d4 {[%clk 0:01:30.3]} 26. Rxe7 {[%clk
0:00:37.1]} 26... dxc3 {[%clk 0:01:13.7]} 27. Bh7+ {[%clk 0:00:35.7]} 27... Kf8
{[%clk 0:01:05.5]} 28. Rxf7+ {[%clk 0:00:36.5]} 28... Ke8 {[%clk 0:01:06.5]} 29.
Re1+ {[%clk 0:00:37.7]} 1-0

[Event "*** Titled Tuesday 3|2 Blitz"]
[Site "Chess.com"]
[Date "2015.05.05"]
[Round "2"]
[White "cassoulet"]
[Black "9ShMat2"]
[Result "0-1"]
[WhiteElo "2171"]
[BlackElo "2415"]
[TimeControl "180+2"]
[EndTime "11:20:50 PDT"]
[Termination "9ShMat2 won by resignation"]

1. e4 {[%clk 0:03:01.9]} 1... c5 {[%clk 0:03:00.4]} 2. Nf3 {[%clk 0:03:02.3]}
2... e6 {[%clk 0:03:01.9]} 3. d4 {[%clk 0:03:02.4]} 3... cxd4 {[%clk 0:03:03.8]}
4. Nxd4 {[%clk 0:03:04.3]} 4... Bc5 {[%clk 0:03:03.7]} 5. Nb3 {[%clk 0:03:03.5]}
5... Bb6 {[%clk 0:03:04.7]} 6. Nc3 {[%clk 0:03:04.8]} 6... Ne7 {[%clk
0:03:04.3]} 7. Bd3 {[%clk 0:03:05.1]} 7... O-O {[%clk 0:03:04.1]} 8. O-O {[%clk
0:03:06.2]} 8... Nbc6 {[%clk 0:03:03.9]} 9. a4 {[%clk 0:03:06.8]} 9... f5 {[%clk
0:03:03.3]} 10. Bg5 {[%clk 0:03:04.2]} 10... fxe4 {[%clk 0:02:57.7]} 11. Nxe4
{[%clk 0:02:58.2]} 11... d5 {[%clk 0:02:58.4]} 12. Ng3 {[%clk 0:02:51.8]} 12...
Bd7 {[%clk 0:02:54.7]} 13. a5 {[%clk 0:02:51.2]} 13... Bc7 {[%clk 0:02:49.6]}
14. Qh5 {[%clk 0:02:50.1]} 14... g6 {[%clk 0:02:47.1]} 15. Qh4 {[%clk
0:02:50.7]} 15... Qe8 {[%clk 0:02:40.8]} 16. Nc5 {[%clk 0:02:49]} 16... Bc8
{[%clk 0:02:42.1]} 17. b4 {[%clk 0:02:37.1]} 17... a6 {[%clk 0:02:35.2]} 18.
Rae1 {[%clk 0:02:36.3]} 18... Qf7 {[%clk 0:02:32.4]} 19. c3 {[%clk 0:02:22.7]}
19... e5 {[%clk 0:02:25.5]} 20. Bh6 {[%clk 0:02:13.3]} 20... Re8 {[%clk
0:02:16.8]} 21. Qg5 {[%clk 0:02:12.2]} 21... Qf4 {[%clk 0:02:11.2]} 22. Qxf4
{[%clk 0:01:35.3]} 22... exf4 {[%clk 0:02:13.1]} 23. Ne2 {[%clk 0:01:36.8]}
23... f3 {[%clk 0:02:02.2]} 24. Ng3 {[%clk 0:01:37.1]} 24... fxg2 {[%clk
0:01:53.7]} 25. Kxg2 {[%clk 0:01:39]} 25... Bd6 {[%clk 0:01:52.1]} 26. Ne6
{[%clk 0:01:36.9]} 26... Bxe6 {[%clk 0:01:38]} 27. Rxe6 {[%clk 0:01:38.8]} 27...
Be5 {[%clk 0:01:39.4]} 28. c4 {[%clk 0:01:28.8]} 28... Nxb4 {[%clk 0:01:34.6]}
29. Be2 {[%clk 0:01:17.6]} 29... Bxg3 {[%clk 0:01:23.3]} 30. hxg3 {[%clk
0:01:05.3]} 30... Nf5 {[%clk 0:01:23.6]} 31. Rxe8+ {[%clk 0:00:37.9]} 31... Rxe8
{[%clk 0:01:25.5]} 32. Bd2 {[%clk 0:00:34]} 32... Rxe2 {[%clk 0:01:23]} 33. Bxb4
{[%clk 0:00:34.8]} 33... Ra2 {[%clk 0:01:17.9]} 34. Rd1 {[%clk 0:00:29.8]} 0-1